[Event "CAN-op"]
[Site "Ottawa CAN"]
[Date "2026.07.12"]
[Round "4.7"]
[White "Qian, Ashley"]
[Black "Noritsyn, Nikolay"]
[Result "1/2-1/2"]
[ECO "C45"]
[WhiteElo "1983"]
[BlackElo "2458"]
[WhiteFideId "-1"]
[BlackFideId "-1"]
[PlyCount "108"]
[GameId "2332995607178860"]
[EventDate "2026.07.11"]
[EventType "swiss"]
[EventRounds "9"]
[EventCountry "CAN"]
[TimeControl "5400+30"]
[WhiteClock "0:03:08"]
[BlackClock "0:06:29"]

1. e4 {[%emt 0:00:05.94]} e5 {[%emt 0:00:34.94]} 2. Nf3 {[%emt 0:00:14]} Nc6 {[%emt 0:00:07]} 3. d4 {[%emt 0:00:35]} exd4 {[%emt 0:00:06]} 4. Nxd4 {[%emt 0:00:09]} Qf6 {[%emt 0:00:24]} 5. Nb3 {[%emt 0:10:27]} Qg6 {[%emt 0:00:19]} 6. Qe2 {[%emt 0:06:17]} a5 {[%emt 0:08:56]} 7. a3 {[%emt 0:09:22]} a4 {[%emt 0:01:37]} 8. N3d2 {[%emt 0:00:27]} Bc5 {[%emt 0:04:20]} 9. Nc3 {[%emt 0:08:34.10]} Nf6 {[%emt 0:17:39]} 10. Nc4 {[%emt 0:12:51]} O-O {[%emt 0:05:36.10]} 11. Be3 {[%emt 0:07:46]} d6 {[%emt 0:07:39]} 12. f3 {[%emt 0:04:21]} Be6 {[%emt 0:19:24]} 13. Bxc5 {[%emt 0:05:18]} dxc5 {[%emt 0:00:10]} 14. Qf2 {[%emt 0:00:34]} Nd4 {[%emt 0:01:21]} 15. Ne3 {[%emt 0:01:50]} c6 {[%emt 0:12:37]} 16. Bd3 {[%emt 0:04:33]} Qh6 {[%emt 0:01:15]} 17. O-O {[%emt 0:02:42]} b5 {[%emt 0:00:15]} 18. e5 {[%emt 0:00:24]} Nd7 {[%emt 0:02:00]} 19. f4 {[%emt 0:00:23]} f6 {[%emt 0:02:32]} 20. exf6 {[%emt 0:04:16]} Nxf6 {[%emt 0:00:06]} 21. Rae1 {[%emt 0:01:37]} Rae8 {[%emt 0:00:29]} 22. Ne4 {[%emt 0:01:05]} Nxe4 {[%emt 0:04:02]} 23. Bxe4 {[%emt 0:00:06]} Bd7 {[%emt 0:01:52]} 24. Bd3 {[%emt 0:02:50]} c4 {[%emt 0:01:43]} 25. Nxc4 {[%emt 0:07:03]} Rxe1 {[%emt 0:01:04]} 26. Rxe1 {[%emt 0:00:17]} Rxf4 {[%emt 0:00:46]} 27. Qe3 {[%emt 0:00:08]} Nf3+ {[%emt 0:04:59]} 28. gxf3 {[%emt 0:00:50]} bxc4 {[%emt 0:00:03]} 29. Bf1 {[%emt 0:05:26]} Qg5+ {[%emt 0:00:20]} 30. Kh1 {[%emt 0:02:23]} h6 {[%emt 0:00:21]} 31. b3 {[%emt 0:00:46]} cxb3 {[%emt 0:00:40]} 32. cxb3 {[%emt 0:00:06]} axb3 {[%emt 0:00:24]} 33. Qxb3+ {[%emt 0:00:06]} Kh7 {[%emt 0:00:05]} 34. Bd3+ {[%emt 0:01:13]} Bf5 {[%emt 0:00:04]} 35. Bxf5+ {[%emt 0:01:39]} Qxf5 {[%emt 0:00:08]} 36. Qb1 {[%emt 0:00:56]} Qxb1 {[%emt 0:02:06]} 37. Rxb1 {[%emt 0:00:01]} Rxf3 {[%emt 0:00:07]} 38. Rc1 {[%emt 0:01:11]} Rxa3 {[%emt 0:00:05]} 39. Rxc6 {[%emt 0:00:05]} Ra2 {[%emt 0:00:18]} 40. Rb6 {[%emt 0:00:28]} h5 {[%emt 0:00:05]} 41. Rb4 {[%emt 0:00:32]} Kh6 {[%emt 0:00:09]} 42. h4 {[%emt 0:00:07]} g6 {[%emt 0:00:20]} 43. Rc4 {[%emt 0:00:06]} Re2 {[%emt 0:00:09]} 44. Rb4 {[%emt 0:00:17]} Kg7 {[%emt 0:00:05]} 45. Rf4 {[%emt 0:00:42]} Ra2 {[%emt 0:00:59]} 46. Kg1 {[%emt 0:00:09]} Ra5 {[%emt 0:00:05]} 47. Kg2 {[%emt 0:00:15]} Rf5 {[%emt 0:00:09]} 48. Ra4 {[%emt 0:00:35]} Re5 {[%emt 0:00:09]} 49. Rf4 {[%emt 0:00:10]} Re6 {[%emt 0:00:18]} 50. Kg3 {[%emt 0:00:35]} Rf6 {[%emt 0:00:14]} 51. Ra4 {[%emt 0:00:10]} Rf1 {[%emt 0:00:18]} 52. Kg2 {[%emt 0:01:06]} Rf6 {[%emt 0:00:18]} 53. Kg3 {[%emt 0:00:06]} Re6 {[%emt 0:00:09]} 54. Rf4 {[%emt 0:00:07]} Rf6 {[%emt 0:01:00]} 1/2-1/2

[Event "CAN-op"]
[Site "Ottawa CAN"]
[Date "2026.07.12"]
[Round "4.8"]
[White "Stremavicius, Titas"]
[Black "Lattafi, Youcef"]
[Result "1-0"]
[ECO "A21"]
[WhiteElo "2555"]
[BlackElo "2029"]
[WhiteFideId "-1"]
[BlackFideId "-1"]
[PlyCount "177"]
[GameId "2332995607182957"]
[EventDate "2026.07.11"]
[EventType "swiss"]
[EventRounds "9"]
[EventCountry "CAN"]
[TimeControl "5400+30"]
[WhiteClock "0:05:10"]
[BlackClock "0:06:24"]

1. c4 {[%emt 0:09:55.94]} e5 {[%emt 0:00:21.94]} 2. Nf3 {[%emt 0:00:05]} d6 {[%emt 0:00:42]} 3. Nc3 {[%emt 0:00:20]} f5 {[%emt 0:00:09]} 4. d4 {[%emt 0:00:08]} e4 {[%emt 0:00:05]} 5. Ng1 {[%emt 0:00:05]} c6 {[%emt 0:00:49]} 6. Bf4 {[%emt 0:04:14]} Nf6 {[%emt 0:02:41]} 7. e3 {[%emt 0:00:00]} Be7 {[%emt 0:00:23]} 8. h4 {[%emt 0:00:00]} Na6 {[%emt 0:01:00]} 9. Nh3 {[%emt 0:00:19]} Nc7 {[%emt 0:00:41]} 10. Bg3 {[%emt 0:00:00]} O-O {[%emt 0:00:31]} 11. Be2 {[%emt 0:00:09]} d5 {[%emt 0:02:00]} 12. Qb3 {[%emt 0:07:28]} Kh8 {[%emt 0:08:17]} 13. h5 {[%emt 0:20:19.10]} dxc4 {[%emt 0:06:00]} 14. Qxc4 {[%emt 0:01:10]} Be6 {[%emt 0:14:56.10]} 15. Bxc7 {[%emt 0:02:11]} Qd7 {[%emt 0:00:15]} 16. Qa4 {[%emt 0:00:07]} Qxc7 {[%emt 0:00:12]} 17. Nf4 {[%emt 0:00:06]} Qd7 {[%emt 0:05:17]} 18. Bc4 {[%emt 0:04:00]} Bxc4 {[%emt 0:06:31]} 19. Qxc4 {[%emt 0:01:43]} Ng4 {[%emt 0:01:30]} 20. Rc1 {[%emt 0:14:11]} Bd6 {[%emt 0:03:32]} 21. Nce2 {[%emt 0:00:08]} a5 {[%emt 0:03:29]} 22. a4 {[%emt 0:01:04]} Rf6 {[%emt 0:02:31]} 23. Kf1 {[%emt 0:07:14]} Rd8 {[%emt 0:04:13]} 24. g3 {[%emt 0:00:54]} Qf7 {[%emt 0:03:35]} 25. Qxf7 {[%emt 0:03:40]} Rxf7 {[%emt 0:00:07]} 26. Ne6 {[%emt 0:00:06]} Re8 {[%emt 0:01:32]} 27. N2f4 {[%emt 0:02:28]} Kg8 {[%emt 0:02:03]} 28. Ke2 {[%emt 0:03:09]} Rfe7 {[%emt 0:01:41]} 29. d5 {[%emt 0:03:46]} cxd5 {[%emt 0:01:58]} 30. Nd4 {[%emt 0:00:02]} Re5 {[%emt 0:04:14]} 31. Nb5 {[%emt 0:01:21]} Rd8 {[%emt 0:02:32]} 32. Rc2 {[%emt 0:06:37]} Ree8 {[%emt 0:03:00]} 33. Nd4 {[%emt 0:01:57]} Be5 {[%emt 0:04:12]} 34. Nxf5 {[%emt 0:03:21]} d4 {[%emt 0:00:40]} 35. exd4 {[%emt 0:00:12]} Bxd4 {[%emt 0:02:00]} 36. Rd1 {[%emt 0:00:13]} Be5 {[%emt 0:02:39]} 37. Rxd8 {[%emt 0:04:06]} Rxd8 {[%emt 0:00:09]} 38. Nd5 {[%emt 0:00:11]} Kf7 {[%emt 0:01:19]} 39. Nde3 {[%emt 0:00:41]} Nf6 {[%emt 0:01:20]} 40. Rc5 {[%emt 0:00:14]} Bxb2 {[%emt 0:01:04]} 41. Rb5 {[%emt 0:00:34]} Bc3 {[%emt 0:00:58]} 42. Rxb7+ {[%emt 0:00:40]} Rd7 {[%emt 0:00:32]} 43. Rxd7+ {[%emt 0:00:10]} Nxd7 {[%emt 0:00:09]} 44. Nd6+ {[%emt 0:00:04]} Ke6 {[%emt 0:02:40]} 45. Nxe4 {[%emt 0:00:03]} Bf6 {[%emt 0:02:17]} 46. Nc4 {[%emt 0:02:42]} Kd5 {[%emt 0:00:00]} 47. Kd3 {[%emt 0:00:24]} Bd8 {[%emt 0:01:34]} 48. Ne3+ {[%emt 0:00:05]} Ke6 {[%emt 0:00:46]} 49. Kc4 {[%emt 0:01:23]} Ke5 {[%emt 0:01:50]} 50. Nc3 {[%emt 0:00:00]} Nf6 {[%emt 0:00:44]} 51. f4+ {[%emt 0:00:35]} Ke6 {[%emt 0:00:40]} 52. g4 {[%emt 0:00:05]} Ne8 {[%emt 0:00:16]} 53. Kb5 {[%emt 0:02:13]} g6 {[%emt 0:00:46]} 54. h6 {[%emt 0:00:00]} Nd6+ {[%emt 0:01:12]} 55. Kc6 {[%emt 0:00:00]} Nf7 {[%emt 0:01:13]} 56. g5 {[%emt 0:00:18]} Nxg5 {[%emt 0:00:00]} 57. fxg5 {[%emt 0:00:06]} Bxg5 {[%emt 0:00:59]} 58. Nc4 {[%emt 0:01:13]} Bxh6 {[%emt 0:00:51]} 59. Ne2 {[%emt 0:00:13]} Bg5 {[%emt 0:02:11]} 60. Nd4+ {[%emt 0:00:33]} Kf6 {[%emt 0:00:00]} 61. Nxa5 {[%emt 0:00:39]} Be3 {[%emt 0:00:00]} 62. Kd5 {[%emt 0:01:02]} Ke7 {[%emt 0:00:03]} 63. Nf3 {[%emt 0:00:30]} Kd7 {[%emt 0:00:00]} 64. Nc4 {[%emt 0:00:11]} Ba7 {[%emt 0:00:02]} 65. Nce5+ {[%emt 0:00:12]} Kc7 {[%emt 0:00:18]} 66. Ng5 {[%emt 0:00:09]} Kb6 {[%emt 0:00:29]} 67. Nc4+ {[%emt 0:00:36]} Ka6 {[%emt 0:00:30]} 68. Nxh7 {[%emt 0:00:30]} Be3 {[%emt 0:00:22]} 69. Nf6 {[%emt 0:00:10]} g5 {[%emt 0:01:59]} 70. Ng4 {[%emt 0:00:56]} Bf4 {[%emt 0:01:04]} 71. Ke4 {[%emt 0:00:47]} Kb7 {[%emt 0:00:00]} 72. Nge5 {[%emt 0:00:00]} Ka6 {[%emt 0:00:00]} 73. Kf5 {[%emt 0:00:44]} Kb7 {[%emt 0:00:00]} 74. Nd3 {[%emt 0:00:00]} Bc7 {[%emt 0:00:00]} 75. Nde5 {[%emt 0:00:00]} Ka6 {[%emt 0:01:54]} 76. Nf3 {[%emt 0:00:50]} Bd8 {[%emt 0:00:46]} 77. Nxg5 {[%emt 0:01:00]} Bc7 {[%emt 0:00:00]} 78. Ke6 {[%emt 0:00:50]} Bd8 {[%emt 0:00:00]} 79. Ne4 {[%emt 0:00:00]} Bc7 {[%emt 0:00:00]} 80. Nc5+ {[%emt 0:00:00]} Ka7 {[%emt 0:00:00]} 81. Kd7 {[%emt 0:00:00]} Bh2 {[%emt 0:00:00]} 82. Kc6 {[%emt 0:00:26]} Bg1 {[%emt 0:00:00]} 83. Na3 {[%emt 0:00:00]} Bf2 {[%emt 0:00:00]} 84. Nb5+ {[%emt 0:00:00]} Ka8 {[%emt 0:00:00]} 85. a5 {[%emt 0:00:10]} Bg3 {[%emt 0:00:00]} 86. a6 {[%emt 0:00:08]} Bf4 {[%emt 0:00:00]} 87. Nd7 {[%emt 0:00:35]} Bc7 {[%emt 0:00:43]} 88. Nb6+ {[%emt 0:00:05]} Bxb6 {[%emt 0:00:07]} 89. Kxb6 {[%emt 0:00:04]} 1-0

[Event "CAN-op"]
[Site "Ottawa CAN"]
[Date "2026.07.13"]
[Round "5.1"]
[White "Jaferian, Koosha"]
[Black "Plotkin, Victor"]
[Result "1-0"]
[ECO "C56"]
[WhiteElo "2249"]
[BlackElo "2279"]
[WhiteFideId "-1"]
[BlackFideId "-1"]
[PlyCount "101"]
[GameId "2332995607211665"]
[EventDate "2026.07.11"]
[EventType "swiss"]
[EventRounds "9"]
[EventCountry "CAN"]
[TimeControl "5400+30"]
[WhiteClock "0:20:58"]
[BlackClock "0:01:42"]

1. e4 {[%emt 0:01:18.94]} e5 {[%emt 0:00:07.94]} 2. Nf3 {[%emt 0:00:06]} Nc6 {[%emt 0:00:03]} 3. d4 {[%emt 0:00:10]} exd4 {[%emt 0:00:13]} 4. Bc4 {[%emt 0:00:06]} Nf6 {[%emt 0:01:21]} 5. e5 {[%emt 0:00:09]} d5 {[%emt 0:01:05]} 6. Bb5 {[%emt 0:00:06]} Ne4 {[%emt 0:00:56]} 7. Nxd4 {[%emt 0:00:09]} Bd7 {[%emt 0:01:42]} 8. Bxc6 {[%emt 0:00:08]} bxc6 {[%emt 0:01:50]} 9. O-O {[%emt 0:00:11]} g6 {[%emt 0:06:52]} 10. f3 {[%emt 0:03:58]} Nc5 {[%emt 0:01:41]} 11. Be3 {[%emt 0:02:37]} Na4 {[%emt 0:09:27]} 12. b3 {[%emt 0:05:34]} Nb6 {[%emt 0:00:49]} 13. c3 {[%emt 0:07:41]} c5 {[%emt 0:04:09]} 14. Ne2 {[%emt 0:00:51]} Qe7 {[%emt 0:01:52]} 15. f4 {[%emt 0:02:22]} O-O-O {[%emt 0:03:31]} 16. a4 {[%emt 0:01:41]} Bc6 {[%emt 0:12:22.10]} 17. a5 {[%emt 0:09:28]} Nd7 {[%emt 0:01:06]} 18. Qd3 {[%emt 0:10:38.10]} Kb8 {[%emt 0:05:57]} 19. b4 {[%emt 0:01:35]} f6 {[%emt 0:01:21]} 20. exf6 {[%emt 0:02:52]} Qxf6 {[%emt 0:02:02]} 21. bxc5 {[%emt 0:07:37]} Nxc5 {[%emt 0:02:15]} 22. Bd4 {[%emt 0:05:59]} Qe7 {[%emt 0:04:28]} 23. Qc2 {[%emt 0:00:57]} Rg8 {[%emt 0:01:25]} 24. Be5 {[%emt 0:02:29]} Ne6 {[%emt 0:07:10]} 25. Nd4 {[%emt 0:01:32]} Qc5 {[%emt 0:07:33]} 26. Nd2 {[%emt 0:02:37]} Nxd4 {[%emt 0:05:31]} 27. Bxd4 {[%emt 0:00:06]} Qe7 {[%emt 0:01:58]} 28. a6 {[%emt 0:01:57]} Ka8 {[%emt 0:01:41]} 29. Nf3 {[%emt 0:02:29]} Bb5 {[%emt 0:03:25]} 30. Rfb1 {[%emt 0:02:41]} Rb8 {[%emt 0:01:26]} 31. c4 {[%emt 0:05:07]} Bxc4 {[%emt 0:06:51]} 32. Rxb8+ {[%emt 0:00:20]} Kxb8 {[%emt 0:00:01]} 33. Qb2+ {[%emt 0:00:16]} Qb4 {[%emt 0:03:07]} 34. Qxb4+ {[%emt 0:00:37]} Bxb4 {[%emt 0:00:02]} 35. Rb1 {[%emt 0:00:08]} Ka8 {[%emt 0:01:08]} 36. Rxb4 {[%emt 0:00:12]} Bxa6 {[%emt 0:00:29]} 37. Ra4 {[%emt 0:01:38]} Kb7 {[%emt 0:00:20]} 38. Ne5 {[%emt 0:00:02]} Ra8 {[%emt 0:00:28]} 39. Rb4+ {[%emt 0:00:30]} Kc8 {[%emt 0:00:01]} 40. Nc6 {[%emt 0:00:24]} Bc4 {[%emt 0:00:40]} 41. Bxa7 {[%emt 0:00:22]} Kd7 {[%emt 0:00:24]} 42. Ne5+ {[%emt 0:00:19]} Ke6 {[%emt 0:00:25]} 43. Rb7 {[%emt 0:00:15]} Kd6 {[%emt 0:00:22]} 44. Nxc4+ {[%emt 0:00:35]} dxc4 {[%emt 0:00:02]} 45. Bd4 {[%emt 0:01:13]} Kd5 {[%emt 0:00:27]} 46. Be5 {[%emt 0:00:13]} c5 {[%emt 0:00:33]} 47. Rxh7 {[%emt 0:00:22]} Ra3 {[%emt 0:00:14]} 48. Rh3 {[%emt 0:01:52]} Rxh3 {[%emt 0:01:59]} 49. gxh3 {[%emt 0:00:01]} g5 {[%emt 0:00:42]} 50. Kf2 {[%emt 0:00:07]} Ke4 {[%emt 0:00:14]} 51. fxg5 {[%emt 0:00:24]} 1-0

[Event "CAN-op"]
[Site "Ottawa CAN"]
[Date "2026.07.13"]
[Round "5.2"]
[White "Rodrigue-Lemieux, Shawn"]
[Black "Golubka, Petro"]
[Result "1-0"]
[ECO "E49"]
[WhiteElo "2534"]
[BlackElo "2355"]
[WhiteFideId "-1"]
[BlackFideId "-1"]
[PlyCount "69"]
[GameId "2332995607215762"]
[EventDate "2026.07.11"]
[EventType "swiss"]
[EventRounds "9"]
[EventCountry "CAN"]
[TimeControl "5400+30"]
[WhiteClock "0:39:11"]
[BlackClock "1:05:53"]

1. d4 {[%emt 0:00:00.94]} Nf6 {[%emt 0:07:53.94]} 2. c4 {[%emt 0:00:10]} e6 {[%emt 0:00:13]} 3. Nc3 {[%emt 0:00:09]} Bb4 {[%emt 0:00:04]} 4. e3 {[%emt 0:00:14]} O-O {[%emt 0:00:08]} 5. a3 {[%emt 0:00:09]} Bxc3+ {[%emt 0:00:25]} 6. bxc3 {[%emt 0:00:08]} c5 {[%emt 0:01:22]} 7. Bd3 {[%emt 0:00:12]} d5 {[%emt 0:00:13]} 8. cxd5 {[%emt 0:00:16]} exd5 {[%emt 0:00:05]} 9. Ne2 {[%emt 0:00:17]} Re8 {[%emt 0:00:50]} 10. O-O {[%emt 0:02:28]} b6 {[%emt 0:02:17]} 11. f3 {[%emt 0:00:40]} Ba6 {[%emt 0:00:04]} 12. Ng3 {[%emt 0:00:14]} Bxd3 {[%emt 0:00:11]} 13. Qxd3 {[%emt 0:00:08]} Nc6 {[%emt 0:00:22]} 14. Bb2 {[%emt 0:00:15]} h5 {[%emt 0:00:44]} 15. Rae1 {[%emt 0:00:29]} Rc8 {[%emt 0:05:03]} 16. e4 {[%emt 0:04:16]} h4 {[%emt 0:12:47]} 17. Nf5 {[%emt 0:01:08]} g6 {[%emt 0:00:05]} 18. Nxh4 {[%emt 0:17:32]} Nxe4 {[%emt 0:00:30]} 19. Nxg6 {[%emt 0:03:31]} Qg5 {[%emt 0:00:14]} 20. fxe4 {[%emt 0:05:16]} Qxg6 {[%emt 0:00:05]} 21. Qh3 {[%emt 0:01:25]} cxd4 {[%emt 0:00:17]} 22. Rf4 {[%emt 0:08:58.10]} dxc3 {[%emt 0:00:25]} 23. Bxc3 {[%emt 0:02:18]} d4 {[%emt 0:00:19]} 24. Rg4 {[%emt 0:01:30]} dxc3 {[%emt 0:00:04]} 25. Rxg6+ {[%emt 0:00:08]} fxg6 {[%emt 0:00:04]} 26. Qxc3 {[%emt 0:02:30]} Ne5 {[%emt 0:00:04]} 27. Qb3+ {[%emt 0:00:26]} Kg7 {[%emt 0:00:03]} 28. Rd1 {[%emt 0:02:19]} Re7 {[%emt 0:00:02]} 29. h3 {[%emt 0:00:40]} Rce8 {[%emt 0:00:09]} 30. Rd6 {[%emt 0:01:38]} Nf7 {[%emt 0:00:30]} 31. Qc3+ {[%emt 0:00:30]} Kh7 {[%emt 0:00:14]} 32. Rf6 {[%emt 0:00:44]} Nh8 {[%emt 0:00:05]} 33. Rf4 {[%emt 0:03:03]} Kg8 {[%emt 0:05:01]} 34. h4 {[%emt 0:02:09]} Kh7 {[%emt 0:00:44]} 35. h5 {[%emt 0:02:58]} 1-0

[Event "CAN-op"]
[Site "Ottawa CAN"]
[Date "2026.07.13"]
[Round "5.4"]
[White "Atanasov, Anthony"]
[Black "Demchenko, Svitlana"]
[Result "1/2-1/2"]
[ECO "A80"]
[WhiteElo "2470"]
[BlackElo "2159"]
[WhiteFideId "-1"]
[BlackFideId "-1"]
[PlyCount "149"]
[GameId "2332995607219861"]
[EventDate "2026.07.11"]
[EventType "swiss"]
[EventRounds "9"]
[EventCountry "CAN"]
[TimeControl "5400+30"]
[WhiteClock "0:01:43"]
[BlackClock "0:01:23"]

1. d4 {[%emt 0:00:03.94]} f5 {[%emt 0:00:07.94]} 2. Nf3 {[%emt 0:00:48]} Nf6 {[%emt 0:00:29]} 3. Bf4 {[%emt 0:02:29]} e6 {[%emt 0:00:17]} 4. e3 {[%emt 0:00:41]} b6 {[%emt 0:00:08]} 5. a3 {[%emt 0:03:27]} Bb7 {[%emt 0:01:25]} 6. c4 {[%emt 0:06:13]} d6 {[%emt 0:01:59]} 7. Nc3 {[%emt 0:00:20]} h6 {[%emt 0:06:16]} 8. h4 {[%emt 0:00:41]} Be7 {[%emt 0:05:45]} 9. Qb3 {[%emt 0:03:39]} Qc8 {[%emt 0:08:34]} 10. Be2 {[%emt 0:07:48]} O-O {[%emt 0:10:02]} 11. Rd1 {[%emt 0:05:34]} Ne4 {[%emt 0:13:10.10]} 12. Nxe4 {[%emt 0:07:24.10]} Bxe4 {[%emt 0:00:46]} 13. Nd2 {[%emt 0:20:25]} Bb7 {[%emt 0:02:48]} 14. Bf3 {[%emt 0:01:27]} c5 {[%emt 0:05:20]} 15. dxc5 {[%emt 0:02:47]} dxc5 {[%emt 0:00:22]} 16. Bxb7 {[%emt 0:02:27]} Qxb7 {[%emt 0:00:07]} 17. Nf3 {[%emt 0:00:07]} Nc6 {[%emt 0:02:19]} 18. O-O {[%emt 0:00:12]} Bf6 {[%emt 0:09:03]} 19. Bd6 {[%emt 0:01:02]} Rf7 {[%emt 0:00:00]} 20. Qc2 {[%emt 0:00:13]} Re8 {[%emt 0:10:15]} 21. b4 {[%emt 0:01:49]} e5 {[%emt 0:04:11]} 22. bxc5 {[%emt 0:02:13]} e4 {[%emt 0:00:53]} 23. Nd4 {[%emt 0:00:05]} Bxh4 {[%emt 0:01:41]} 24. Qa4 {[%emt 0:06:03]} Rc8 {[%emt 0:00:24]} 25. Nb5 {[%emt 0:03:54]} a6 {[%emt 0:03:20]} 26. Nc3 {[%emt 0:03:14]} bxc5 {[%emt 0:01:54]} 27. Nd5 {[%emt 0:00:21]} Rd8 {[%emt 0:02:23]} 28. Bxc5 {[%emt 0:02:04]} Ne5 {[%emt 0:01:43]} 29. Bb6 {[%emt 0:02:08]} Rc8 {[%emt 0:02:13]} 30. c5 {[%emt 0:00:25]} Nd3 {[%emt 0:00:59]} 31. Nb4 {[%emt 0:09:05]} Nxc5 {[%emt 0:05:02]} 32. Bxc5 {[%emt 0:00:09]} Rxc5 {[%emt 0:00:01]} 33. Nxa6 {[%emt 0:01:21]} Rc6 {[%emt 0:00:55]} 34. Nb4 {[%emt 0:00:07]} Rg6 {[%emt 0:00:05]} 35. Qe8+ {[%emt 0:01:29]} Kh7 {[%emt 0:00:07]} 36. Nd5 {[%emt 0:00:08]} Ra6 {[%emt 0:02:15]} 37. a4 {[%emt 0:01:17]} Ra8 {[%emt 0:00:16]} 38. Qb5 {[%emt 0:00:58]} Qxb5 {[%emt 0:00:58]} 39. axb5 {[%emt 0:00:01]} Ra5 {[%emt 0:00:29]} 40. b6 {[%emt 0:01:02]} Rb7 {[%emt 0:00:14]} 41. Rd4 {[%emt 0:00:00]} Rb5 {[%emt 0:00:38]} 42. Rc1 {[%emt 0:00:45]} Rb2 {[%emt 0:00:41]} 43. g3 {[%emt 0:03:17]} Bd8 {[%emt 0:00:21]} 44. Rc5 {[%emt 0:00:12]} Bxb6 {[%emt 0:00:44]} 45. Nxb6 {[%emt 0:00:02]} R7xb6 {[%emt 0:00:18]} 46. Rxf5 {[%emt 0:00:03]} R2b4 {[%emt 0:00:46]} 47. Re5 {[%emt 0:00:45]} Rxd4 {[%emt 0:00:34]} 48. exd4 {[%emt 0:00:01]} Rb1+ {[%emt 0:00:20]} 49. Kh2 {[%emt 0:01:22]} Re1 {[%emt 0:00:04]} 50. Kh3 {[%emt 0:01:33]} Re2 {[%emt 0:00:31]} 51. Kg2 {[%emt 0:00:01]} Re1 {[%emt 0:00:18]} 52. g4 {[%emt 0:00:08]} Kg6 {[%emt 0:00:22]} 53. Kg3 {[%emt 0:00:24]} Re2 {[%emt 0:00:24]} 54. Kg2 {[%emt 0:00:48]} Re1 {[%emt 0:00:05]} 55. Kh3 {[%emt 0:00:26]} Re2 {[%emt 0:00:39]} 56. Kg3 {[%emt 0:00:02]} Kf6 {[%emt 0:00:33]} 57. Kg2 {[%emt 0:00:30]} Re1 {[%emt 0:00:16]} 58. Kh2 {[%emt 0:01:12]} Re2 {[%emt 0:00:37]} 59. Kg3 {[%emt 0:02:48]} Kg6 {[%emt 0:00:34]} 60. Re6+ {[%emt 0:00:00]} Kf7 {[%emt 0:00:15]} 61. Rd6 {[%emt 0:00:00]} Ke7 {[%emt 0:00:53]} 62. Rd5 {[%emt 0:00:00]} Kf6 {[%emt 0:00:27]} 63. Rf5+ {[%emt 0:00:00]} Kg6 {[%emt 0:00:37]} 64. d5 {[%emt 0:00:00]} Rd2 {[%emt 0:00:40]} 65. Re5 {[%emt 0:00:33]} Kf6 {[%emt 0:00:32]} 66. Rh5 {[%emt 0:00:58]} Ke7 {[%emt 0:01:02]} 67. Re5+ {[%emt 0:00:30]} Kf6 {[%emt 0:00:09]} 68. Rf5+ {[%emt 0:00:15]} Kg6 {[%emt 0:00:30]} 69. Kh3 {[%emt 0:00:25]} Rd3+ {[%emt 0:00:38]} 70. Kg2 {[%emt 0:00:06]} Rd1 {[%emt 0:00:13]} 71. Kh2 {[%emt 0:00:42]} Rd3 {[%emt 0:00:27]} 72. Kg2 {[%emt 0:00:50]} Rd1 {[%emt 0:00:04]} 73. Kh3 {[%emt 0:01:24]} Rd3+ {[%emt 0:00:22]} 74. Kh2 {[%emt 0:00:04]} Rd4 {[%emt 0:01:17]} 75. Kg3 {[%emt 0:01:22]} 1/2-1/2

[Event "CAN-op"]
[Site "Ottawa CAN"]
[Date "2026.07.13"]
[Round "5.5"]
[White "Dukic, Zachary"]
[Black "Preotu, Razvan"]
[Result "0-1"]
[ECO "B33"]
[WhiteElo "2204"]
[BlackElo "2482"]
[WhiteFideId "-1"]
[BlackFideId "-1"]
[PlyCount "70"]
[GameId "2332995607223958"]
[EventDate "2026.07.11"]
[EventType "swiss"]
[EventRounds "9"]
[EventCountry "CAN"]
[TimeControl "5400+30"]
[WhiteClock "0:01:34"]
[BlackClock "0:05:31"]

1. e4 {[%emt 0:00:00.94]} c5 {[%emt 0:08:21.94]} 2. Nf3 {[%emt 0:00:07]} Nc6 {[%emt 0:01:42]} 3. d4 {[%emt 0:00:08]} cxd4 {[%emt 0:00:07]} 4. Nxd4 {[%emt 0:00:04]} Nf6 {[%emt 0:01:26]} 5. Nc3 {[%emt 0:00:06]} e5 {[%emt 0:01:07]} 6. Ndb5 {[%emt 0:00:08]} d6 {[%emt 0:00:05]} 7. Nd5 {[%emt 0:03:27]} Nxd5 {[%emt 0:00:07]} 8. exd5 {[%emt 0:00:07]} Nb8 {[%emt 0:00:06]} 9. Qf3 {[%emt 0:01:02]} a6 {[%emt 0:00:20]} 10. Qa3 {[%emt 0:00:27]} Be7 {[%emt 0:00:44]} 11. Bg5 {[%emt 0:01:37]} f6 {[%emt 0:00:49]} 12. Bd2 {[%emt 0:01:05]} O-O {[%emt 0:02:42]} 13. Bb4 {[%emt 0:02:38]} Qd7 {[%emt 0:05:56]} 14. O-O-O {[%emt 0:10:30]} Rd8 {[%emt 0:02:32]} 15. f4 {[%emt 0:04:15]} b6 {[%emt 0:00:12]} 16. Bd2 {[%emt 0:11:50]} Bb7 {[%emt 0:10:25]} 17. Nc3 {[%emt 0:00:27]} Qc7 {[%emt 0:00:16]} 18. g4 {[%emt 0:02:37.10]} Nd7 {[%emt 0:05:46.10]} 19. h4 {[%emt 0:01:18]} b5 {[%emt 0:06:29]} 20. g5 {[%emt 0:06:38]} Kh8 {[%emt 0:28:25]} 21. Bg2 {[%emt 0:35:55]} Qc4 {[%emt 0:11:58]} 22. b3 {[%emt 0:02:16]} Qd4 {[%emt 0:00:49]} 23. Qb2 {[%emt 0:01:15]} Nb6 {[%emt 0:02:53]} 24. a3 {[%emt 0:02:26]} a5 {[%emt 0:03:48]} 25. Nxb5 {[%emt 0:00:29]} Qf2 {[%emt 0:00:14]} 26. Rhg1 {[%emt 0:05:02]} Bxd5 {[%emt 0:00:09]} 27. Rdf1 {[%emt 0:03:32]} Qc5 {[%emt 0:00:14]} 28. a4 {[%emt 0:00:20]} Bxg2 {[%emt 0:01:09]} 29. Rxg2 {[%emt 0:00:01]} Nd5 {[%emt 0:00:14]} 30. fxe5 {[%emt 0:00:51]} dxe5 {[%emt 0:00:12]} 31. gxf6 {[%emt 0:00:11]} Bxf6 {[%emt 0:00:29]} 32. Bg5 {[%emt 0:00:41]} Nf4 {[%emt 0:01:42]} 33. Bxf4 {[%emt 0:03:59]} exf4 {[%emt 0:00:05]} 34. c3 {[%emt 0:00:45]} Qe3+ {[%emt 0:00:25]} 35. Kb1 {[%emt 0:00:11]} Qd3+ {[%emt 0:06:01]} 0-1

[Event "CAN-op"]
[Site "Ottawa CAN"]
[Date "2026.07.13"]
[Round "5.6"]
[White "Marchand, Calix"]
[Black "Stremavicius, Titas"]
[Result "0-1"]
[ECO "B18"]
[WhiteElo "2181"]
[BlackElo "2555"]
[WhiteFideId "-1"]
[BlackFideId "-1"]
[PlyCount "52"]
[GameId "2332995607223959"]
[EventDate "2026.07.11"]
[EventType "swiss"]
[EventRounds "9"]
[EventCountry "CAN"]
[TimeControl "5400+30"]
[WhiteClock "0:00:32"]
[BlackClock "0:07:45"]

1. e4 {[%emt 0:00:11.94]} c6 {[%emt 0:04:23.94]} 2. d4 {[%emt 0:00:23]} d5 {[%emt 0:00:07]} 3. Nc3 {[%emt 0:00:27]} dxe4 {[%emt 0:00:08]} 4. Nxe4 {[%emt 0:00:07]} Bf5 {[%emt 0:00:18]} 5. Qf3 {[%emt 0:00:40]} e6 {[%emt 0:00:57]} 6. c3 {[%emt 0:01:11]} Nf6 {[%emt 0:03:17]} 7. Nxf6+ {[%emt 0:01:05]} Qxf6 {[%emt 0:00:08]} 8. Qg3 {[%emt 0:01:14]} Nd7 {[%emt 0:00:49]} 9. Nf3 {[%emt 0:00:40]} Qd8 {[%emt 0:00:47]} 10. a4 {[%emt 0:03:34]} a5 {[%emt 0:06:40]} 11. Be2 {[%emt 0:06:09]} h5 {[%emt 0:00:27]} 12. h4 {[%emt 0:03:03]} Nf6 {[%emt 0:03:06]} 13. O-O {[%emt 0:05:03]} Ne4 {[%emt 0:01:37]} 14. Qh2 {[%emt 0:01:37]} Be7 {[%emt 0:12:37]} 15. Bf4 {[%emt 0:11:56]} Qb6 {[%emt 0:07:32.10]} 16. Bc4 {[%emt 0:33:36.10]} O-O {[%emt 0:13:17]} 17. Ra2 {[%emt 0:01:42]} Rac8 {[%emt 0:02:34]} 18. Ne5 {[%emt 0:03:30]} Rfd8 {[%emt 0:14:34]} 19. Be3 {[%emt 0:00:06]} c5 {[%emt 0:02:01]} 20. Bb5 {[%emt 0:14:35]} cxd4 {[%emt 0:09:42]} 21. Bxd4 {[%emt 0:03:02]} Rxd4 {[%emt 0:01:36]} 22. cxd4 {[%emt 0:00:10]} Bd6 {[%emt 0:00:42]} 23. g3 {[%emt 0:05:57]} Nd2 {[%emt 0:06:56]} 24. Rd1 {[%emt 0:01:41]} Qxd4 {[%emt 0:00:06]} 25. Qg2 {[%emt 0:00:42]} Qxe5 {[%emt 0:01:12]} 26. Qxb7 {[%emt 0:00:36]} Rb8 {[%emt 0:00:11]} 0-1